bitfinex-derivatives/quotes_ETHF0:USTF0_20240917
["timestamp","ask_amount","ask_price","bid_price","bid_amount"]
[1726591717318,4.26028,2375.0,2374.2,1.05282]
[1726591717532,0.42104,2374.7,2374.6,0.42105]
[1726591717717,4.26028,2375.0,2374.1,3.2078]
[1726591718030,0.4211,2374.4,2374.3,0.4211]
[1726591718529,3.2078,2374.6,2374.4,0.42108]
[1726591718530,0.42108,2374.5,2374.4,0.42108]
[1726591720727,0.4211,2374.4,2374.3,0.4211]
[1726591720921,0.6257,2375.1,2374.2,0.42112]
[1726591720922,0.42112,2374.3,2374.2,0.42112]
[1726591721117,0.4211,2374.4,2374.3,0.4211]
[1726591721323,1.05263,2374.7,2374.1,1.05287]
[1726591721525,0.42108,2374.5,2374.4,0.42108]
[1726591722324,3.2078,2374.8,2374.3,0.4211]
[1726591722325,0.4211,2374.4,2374.3,0.4211]
[1726591722527,0.42109,2374.5,2374.4,0.42109]
[1726591722725,0.4211,2374.4,2374.3,0.42109]
[1726591723128,1.05266,2374.6,2374.0,1.7037]
[1726591723324,1.05266,2374.6,2374.0,0.6508]
[1726591723525,0.42111,2374.3,2374.2,0.42113]
[1726591724037,1.0527,2374.5,2374.0,0.6508]
[1726591724335,1.0527,2374.5,2374.0,0.42115]
[1726591724336,0.42115,2374.1,2374.0,0.42115]
[1726591724730,0.42114,2374.2,2374.1,0.42113]
[1726591724937,0.42115,2374.1,2374.0,0.42115]
[1726591725429,0.42114,2374.2,2374.1,0.42114]
[1726591725634,0.42114,2374.2,2373.8,0.6591]
[1726591725635,0.42115,2374.1,2374.0,0.42115]
[1726591726025,0.42117,2374.0,2373.9,0.42117]
[1726591726427,0.42115,2374.1,2374.0,0.42115]
[1726591726724,1.05297,2373.9,2373.4,4.179]
[1726591726924,0.42119,2373.9,2373.7,0.42121]
[1726591727131,1.09918,2374.0,2373.8,0.42119]
[1726591727332,3.24027138,2374.0,2373.7,0.4212]
[1726591727535,0.42119,2373.9,2373.7,0.4212]
[1726591727739,0.678,2374.0,2373.5,3.62904]
[1726591728034,3.24026138,2374.0,2373.8,0.42119]
[1726591728235,2.14109138,2374.0,2373.6,0.42122]
[1726591728440,2.14109138,2373.8,2373.5,3.2078]
[1726591728640,2.14109138,2373.8,2373.2,0.6816]
[1726591728829,0.42129,2373.3,2373.1,1.09422]
[1726591729136,0.42129,2373.3,2372.6,4.2613]
[1726591729137,5.34889138,2373.4,2372.8,0.6816]
[1726591729333,0.42133,2373.1,2372.9,0.42134]
[1726591729543,0.42136,2372.9,2372.6,4.179]
[1726591729837,0.42134,2373.0,2372.8,0.42137]
[1726591730144,3.62913,2373.1,2372.9,0.42135]
[1726591730334,0.42131,2373.2,2372.6,3.2078]
[1726591730641,0.42128,2373.4,2372.6,3.2078]
[1726591730834,3.8826,2373.5,2373.3,0.42128]
[1726591730835,3.62906,2373.5,2373.3,0.42128]
[1726591731539,3.2078,2373.5,2373.3,0.42128]
[1726591731737,3.62906,2373.5,2373.3,0.42128]
[1726591732238,0.6467,2373.7,2373.2,3.2078]
[1726591732440,1.69977,2373.7,2373.1,0.6638]
[1726591732739,3.2078,2373.5,2372.9,3.2078]
[1726591733044,0.42133,2373.1,2372.9,3.62915]
[1726591733339,3.2078,2373.5,2372.8,4.179]
[1726591733340,0.42135,2373.0,2372.8,4.179]
[1726591733540,3.62912,2373.2,2372.9,0.42135]
[1726591733740,3.2078,2373.2,2372.8,0.42136]
[1726591733938,3.2078,2373.2,2372.6,0.6799]
[1726591734241,0.42134,2373.0,2372.8,0.42136]
[1726591734431,0.42133,2373.1,2372.6,0.6799]
[1726591734634,3.2078,2373.2,2372.7,0.42138]
[1726591734833,0.42137,2372.9,2372.7,0.42138]
[1726591735237,0.42135,2373.0,2372.6,0.6799]
[1726591735443,0.42136,2372.9,2372.7,0.42138]
[1726591735643,0.42137,2372.8,2372.6,0.6799]
[1726591736144,0.42137,2372.9,2372.7,0.42139]
[1726591736345,1.70293,2373.1,2372.7,0.42139]
[1726591736548,0.42137,2372.9,2372.7,0.42139]
[1726591737034,0.42138,2372.8,2372.6,0.6799]
[1726591737240,1.05336,2373.0,2372.4,3.2078]
[1726591737436,0.42139,2372.8,2372.6,0.4214]
[1726591737641,4.2612,2372.9,2372.5,0.42142]
[1726591737841,0.4214,2372.7,2372.6,0.4214]
[1726591738036,0.42139,2372.8,2372.6,0.4214]
[1726591738241,0.42139,2372.7,2372.5,0.42142]
[1726591738743,1.05344,2372.8,2372.5,0.42143]
[1726591738946,0.42142,2372.6,2372.5,0.42143]
[1726591739142,0.42143,2372.6,2372.4,0.42143]
[1726591739338,0.42146,2372.4,2372.2,0.6367]
[1726591739537,1.05358,2372.5,2372.1,0.42149]
[1726591739738,1.05358,2372.5,2372.0,0.6604]
[1726591739739,3.2078,2372.3,2372.0,0.42151]
[1726591739946,4.26142,2372.4,2371.7,5.91292]
[1726591740144,1.05367,2372.3,2371.7,0.68]
[1726591740345,0.42153,2371.9,2371.7,0.68]
[1726591740640,3.2078,2372.1,2371.2,7.3868]
[1726591740839,0.42158,2371.7,2371.5,0.42161]
[1726591741038,3.2078,2371.9,2371.3,0.42164]
[1726591741360,0.42158,2371.7,2371.4,0.42162]
[1726591741556,1.05393,2371.7,2371.2,7.3868]
[1726591741853,4.26176,2371.7,2371.2,7.3868]
[1726591742051,4.26176,2371.7,2370.7,5.98773]
[1726591742052,3.2078,2371.7,2370.8,7.3868]
[1726591742249,4.26173,2371.7,2371.0,0.42169]
[1726591742758,0.42164,2371.3,2371.0,0.42169]
[1726591743050,0.42164,2371.3,2370.9,0.42171]
[1726591743251,3.2078,2371.4,2370.8,3.2078]
[1726591743458,4.26191,2371.4,2370.8,3.2078]
[1726591743648,0.42171,2371.0,2370.6,0.42176]
[1726591743844,3.2078,2371.1,2370.2,4.8078]
[1726591744049,0.42177,2370.6,2370.2,4.8078]
[1726591744352,3.2078,2370.8,2370.1,3.62965]
[1726591744353,0.42178,2370.5,2370.1,3.62965]
[1726591744553,3.2078,2370.8,2370.0,0.68]
[1726591744748,0.4218,2370.4,2370.0,0.68]
[1726591744948,3.2078,2370.5,2370.0,0.42187]
[1726591745151,3.2078,2370.5,2369.8,3.8366]
[1726591745357,0.42188,2370.0,2369.8,3.2078]
[1726591745550,0.42188,2370.0,2369.5,1.10195]
[1726591745551,0.42189,2369.9,2369.5,0.68]
[1726591745752,1.05461,2370.2,2369.7,3.2078]
[1726591745753,0.42185,2370.2,2369.7,3.2078]
[1726591745951,3.2078,2370.4,2369.5,0.68]
[1726591746148,0.4219,2369.9,2369.3,7.3868]
[1726591746350,3.2078,2370.4,2369.3,3.2078]
[1726591746553,1.05469,2370.0,2369.3,3.2078]
[1726591746758,0.42194,2369.7,2369.3,3.2078]
[1726591746947,1.05478,2369.8,2369.3,3.2078]
[1726591747146,1.05478,2369.8,2369.0,4.179]
[1726591747147,3.2078,2369.6,2369.0,4.179]
[1726591747352,3.62975,2369.6,2369.1,0.42203]
[1726591747560,3.2078,2369.6,2369.0,4.179]
[1726591747756,0.42194,2369.7,2369.2,0.42201]
[1726591747964,0.6285,2369.8,2369.4,0.42198]
[1726591748266,0.42192,2369.8,2369.4,3.2078]
[1726591748459,3.6297,2369.9,2369.4,0.42198]
[1726591748671,0.6623,2370.1,2369.3,3.2078]
[1726591748965,3.2078,2370.0,2369.3,3.2078]
[1726591749173,0.6623,2370.1,2369.7,0.42191]
[1726591749361,0.6623,2370.1,2369.7,0.42193]
[1726591749556,0.6623,2370.1,2369.7,0.42191]
[1726591749557,3.2078,2369.9,2369.7,0.42191]
[1726591749755,3.2078,2369.9,2369.7,0.42193]
[1726591750051,3.2078,2369.9,2369.3,4.5257]
[1726591750255,3.2078,2369.9,2369.6,0.42194]
[1726591750459,3.2078,2369.9,2369.3,4.5257]
[1726591750961,3.2078,2369.9,2369.6,0.42194]
[1726591751263,0.42191,2369.8,2369.4,0.42197]
[1726591751560,3.2078,2369.6,2369.0,7.3868]
[1726591751866,3.62975,2369.6,2369.2,0.42201]
[1726591752054,3.62975,2369.6,2369.1,0.42202]
[1726591752055,0.42197,2369.5,2369.1,0.42202]
[1726591752251,3.2078,2369.6,2369.0,3.2078]
[1726591752252,3.2078,2369.6,2369.2,0.422]
[1726591752451,0.42191,2369.8,2369.0,3.2078]
[1726591752666,0.42194,2369.7,2369.3,0.422]
[1726591752861,3.2078,2369.6,2369.0,3.2078]
[1726591753058,3.62975,2369.6,2369.0,3.2078]
[1726591753262,3.2078,2369.6,2369.3,0.42199]
[1726591753460,3.2078,2369.6,2369.0,3.2078]
[1726591753764,0.6623,2370.1,2369.0,3.2078]
[1726591753765,0.42197,2369.5,2369.0,3.2078]
[1726591754071,0.42203,2369.1,2368.8,5.4985]
[1726591754358,0.42203,2369.1,2368.4,0.6677]
[1726591754359,0.42205,2369.0,2368.4,0.6677]
[1726591754567,3.2078,2369.1,2368.4,0.6677]
[1726591754568,3.2078,2369.1,2368.7,0.42209]
[1726591754955,3.62984,2369.1,2368.7,0.42209]
[1726591755350,3.2078,2369.1,2368.6,0.4221]
[1726591755556,0.42206,2369.0,2368.6,0.42211]
[1726591755753,3.62984,2369.1,2368.3,5.86792]
[1726591755962,3.2078,2369.1,2368.3,0.6335]
[1726591756164,0.42207,2369.0,2368.6,0.42211]
[1726591756362,3.62984,2369.1,2368.8,0.42207]
[1726591756557,3.2078,2369.1,2368.4,1.0554]
[1726591756766,0.42202,2369.2,2369.0,0.42205]
[1726591757056,4.5114,2369.4,2368.8,0.42207]
[1726591757253,0.42203,2369.2,2368.9,0.42207]
[1726591757459,0.42204,2369.1,2368.8,0.42207]
[1726591757765,0.42202,2369.2,2368.9,0.42206]
[1726591757964,0.422,2369.3,2369.0,0.42204]
[1726591758465,0.422,2369.3,2368.8,3.2078]
[1726591758655,0.422,2369.3,2369.0,0.42204]
[1726591758852,3.8635,2369.4,2368.8,3.2078]
[1726591759059,0.42203,2369.1,2368.9,0.42206]
[1726591759265,0.42202,2369.2,2368.9,0.42207]
[1726591759574,0.42203,2369.1,2368.9,0.42207]
[1726591759761,0.42203,2369.2,2368.9,0.42207]
[1726591760262,3.2078,2369.0,2368.8,0.42208]
[1726591761758,3.2078,2369.0,2368.9,0.42207]
[1726591762755,3.2078,2369.0,2368.6,3.2078]
[1726591762959,3.2078,2369.0,2368.9,0.42207]
[1726591763765,3.2078,2369.0,2368.8,0.42207]
[1726591764067,3.62986,2369.0,2368.7,0.42209]
[1726591764368,3.62986,2369.0,2368.8,0.42208]
[1726591764574,0.42211,2368.7,2368.3,1.2858]
[1726591764759,4.26296,2369.0,2368.6,0.42212]
[1726591764760,0.4221,2368.8,2368.6,0.42212]
[1726591765163,0.42214,2368.6,2368.4,0.42215]
[1726591765367,0.42213,2368.6,2368.4,0.42214]
[1726591765664,4.26309,2368.7,2368.3,1.2858]
[1726591765870,0.42213,2368.6,2368.4,0.42215]
[1726591766069,3.2078,2368.7,2368.5,0.42213]
[1726591766371,0.42212,2368.6,2368.5,0.42213]
[1726591766869,3.62992,2368.7,2368.3,1.2858]
[1726591767068,3.62991,2368.7,2368.3,1.2858]
[1726591767270,0.6605,2368.8,2368.3,2.34122]
[1726591767463,3.2078,2369.0,2368.8,0.42209]
[1726591767666,3.62986,2369.0,2368.5,1.05536]
[1726591768062,3.2078,2369.0,2368.9,0.42207]
[1726591768269,2.37221,2369.3,2369.0,0.42205]
[1726591768270,0.42203,2369.1,2369.0,0.42205]
[1726591768567,3.2078,2369.3,2368.6,1.0553]
[1726591768772,3.2078,2369.3,2369.1,0.42202]
[1726591768969,3.2078,2369.3,2368.5,1.05536]
[1726591768970,3.2078,2369.3,2369.0,0.42204]
[1726591769171,0.42202,2369.2,2369.0,0.42205]
[1726591769374,0.42202,2369.2,2368.5,1.05536]
[1726591769673,3.2078,2369.0,2368.4,0.6184]
[1726591769874,3.2078,2369.0,2368.8,0.42209]
[1726591770268,3.62985,2369.0,2368.8,0.42209]
[1726591770573,0.42209,2368.8,2368.3,5.4648]
[1726591770780,4.26295,2369.0,2368.5,0.42213]
[1726591770968,0.4221,2368.8,2368.6,0.42212]
[1726591771171,0.4221,2368.8,2368.5,0.42212]
[1726591771473,0.4221,2368.8,2368.3,1.2858]
[1726591771474,4.26295,2369.0,2368.3,1.2858]
[1726591771670,0.42215,2368.5,2368.3,1.2858]
[1726591771866,0.42215,2368.5,2368.3,1.70797]
[1726591772264,0.42215,2368.5,2368.3,1.2858]
[1726591772473,0.42214,2368.5,2368.3,1.70797]
[1726591772675,3.2078,2368.7,2368.3,1.70797]
[1726591772867,0.42212,2368.6,2368.4,0.42215]
[1726591773063,3.2078,2368.7,2368.3,1.70796]
[1726591773064,0.42214,2368.5,2368.3,1.70796]
[1726591773469,3.62992,2368.7,2368.5,0.42213]
[1726591774476,0.42212,2368.6,2368.4,0.42214]
[1726591774677,3.62991,2368.7,2368.5,0.42213]
[1726591774880,3.2078,2369.0,2368.2,1.05546]
[1726591775177,0.42207,2368.9,2368.7,0.4221]
[1726591775481,0.42208,2368.9,2368.7,0.4221]
[1726591775674,0.42209,2368.8,2368.6,0.42211]
[1726591776474,0.42208,2368.9,2368.7,0.42209]
[1726591776674,1.05505,2369.2,2368.4,4.2632]
[1726591776973,3.2078,2369.3,2368.4,3.2078]
[1726591777176,0.42202,2369.2,2369.0,0.42204]
[1726591777377,3.2078,2369.3,2368.8,1.0552]
[1726591777681,0.42202,2369.2,2368.7,1.05526]
[1726591777979,0.42202,2369.2,2369.0,0.42204]
[1726591778166,0.42202,2369.2,2368.7,4.26306]
[1726591778375,0.42202,2369.2,2369.0,0.42204]
[1726591778679,0.42206,2369.0,2368.5,1.05533]
[1726591778873,0.42206,2369.0,2368.7,0.4221]
[1726591778874,3.2078,2369.0,2368.7,0.4221]
[1726591779074,0.42209,2368.8,2368.6,0.42211]
[1726591779281,0.42209,2368.8,2368.3,1.05541]
[1726591779474,0.4221,2368.8,2368.3,1.05541]
[1726591779682,0.42208,2368.9,2368.7,0.4221]
[1726591780382,3.2078,2369.0,2368.8,0.42209]
[1726591780581,3.62974,2369.7,2369.5,0.42195]
[1726591780787,3.2078,2369.7,2369.1,1.05505]
[1726591780978,3.2078,2369.7,2369.6,0.42194]
[1726591781383,3.2078,2369.7,2369.4,1.05494]
[1726591781384,3.2078,2370.2,2370.0,0.42187]
[1726591781583,0.42186,2370.1,2369.8,0.4219]
[1726591781786,3.2078,2370.2,2369.5,1.05491]
[1726591781981,3.2078,2370.2,2370.1,0.42185]
[1726591782395,0.42178,2370.5,2370.0,0.42187]
[1726591782680,7.2578,2370.6,2370.2,0.42183]
[1726591782881,7.2578,2370.6,2370.1,0.42185]
[1726591782882,0.42179,2370.5,2370.1,0.42185]
[1726591783082,0.42179,2370.5,2370.1,0.42184]
[1726591783274,7.67958,2370.6,2370.1,0.42184]
[1726591783477,7.67958,2370.6,2370.2,0.42183]
[1726591784082,3.2078,2370.6,2369.9,3.2078]
[1726591784293,4.05,2371.2,2370.4,0.42179]
[1726591784294,3.62951,2370.9,2370.4,0.42179]
[1726591784480,3.2078,2370.9,2369.9,3.4198]
[1726591784790,3.2078,2370.9,2370.5,0.42177]
[1726591785182,3.2078,2370.9,2370.4,0.42179]
[1726591785183,3.62951,2370.9,2370.4,0.42179]
[1726591785385,3.2078,2371.0,2370.5,3.2078]
[1726591785688,2.14109138,2371.4,2371.1,0.42167]
[1726591785689,3.2078,2371.4,2371.1,0.42167]
[1726591786385,3.2078,2371.4,2370.6,4.179]
[1726591786692,7.2578,2371.4,2371.0,0.42168]
[1726591786884,7.2578,2371.4,2370.5,3.2078]
[1726591787076,3.2078,2371.4,2371.0,0.42168]
[1726591787286,7.2578,2371.4,2371.0,0.42168]
[1726591787486,7.67943,2371.4,2370.9,0.4217]
[1726591787688,7.2578,2371.1,2370.4,4.179]
[1726591787887,7.2578,2371.1,2370.7,0.42174]
[1726591787888,0.42168,2371.1,2370.7,0.42174]
[1726591788094,3.62947,2371.2,2370.4,4.179]
[1726591788282,3.2078,2371.2,2370.9,0.4217]
[1726591788690,3.2078,2371.2,2370.5,3.2078]
[1726591788691,3.62947,2371.2,2370.5,3.2078]
[1726591788991,0.42168,2371.1,2370.5,3.2078]
[1726591789392,0.42168,2371.1,2370.7,0.42173]
[1726591789593,0.42168,2371.1,2370.5,3.2078]
[1726591789795,0.42168,2371.1,2370.8,0.42172]
[1726591790291,0.4217,2371.0,2370.7,0.42174]
[1726591790589,3.2078,2371.2,2371.0,0.42169]
[1726591790788,3.62946,2371.2,2370.9,0.4217]
[1726591790988,3.26968184,2371.0,2370.9,0.4217]
[1726591791302,9.09889111,2371.1,2370.0,4.391]
[1726591791481,2.16196132,2370.2,2370.1,0.42185]
[1726591791701,2.70245165,2370.3,2370.2,0.42184]
[1726591791991,2.70245165,2370.4,2370.3,0.42182]
[1726591792179,3.62958,2370.6,2370.3,0.42182]
[1726591792392,3.24294198,2370.5,2370.3,0.42182]
[1726591792583,6.45074198,2370.6,2370.4,0.4218]
[1726591792884,6.45074198,2370.6,2370.4,0.42179]
[1726591793186,6.45074198,2370.6,2369.8,4.26257]
[1726591793386,3.66474198,2370.5,2370.2,0.42182]
[1726591793592,3.62963,2370.3,2369.8,3.2078]
[1726591793785,3.62963,2370.3,2369.9,0.42188]
[1726591793786,2.16093334,2370.0,2369.9,0.42188]
[1726591794397,2.70122157,2370.1,2370.0,0.42187]
[1726591794593,2.70122157,2370.1,2369.4,1.05493]
[1726591794793,3.12308157,2370.1,2369.9,0.42188]
[1726591795093,0.42186,2370.1,2369.9,0.42188]
[1726591795692,7.02637429,2370.4,2369.6,3.2078]
[1726591795884,4.20524231,2370.4,2370.2,0.42183]
[1726591796092,4.20524231,2370.4,2370.1,0.42184]
[1726591796392,3.78343231,2370.4,2369.8,1.05475]
[1726591796596,3.66163958,2370.4,2370.2,0.42183]
[1726591796893,3.23982958,2370.5,2369.6,4.26266]
[1726591797091,3.23982958,2370.4,2369.7,1.05482]
[1726591797286,2.15987032,2370.1,2369.6,3.2078]
[1726591797489,2.15972561,2370.1,2370.0,1.05469]
[1726591797691,2.15972561,2370.1,2370.0,1.47656]
[1726591797993,2.15972561,2370.1,2370.0,5.69576]
[1726591798596,2.15972561,2370.2,2370.1,0.42185]
[1726591798792,3.62958,2370.6,2370.4,0.42179]
[1726591799091,0.42178,2370.5,2370.4,0.42179]
[1726591799398,3.2078,2370.6,2370.4,0.42179]
[1726591799399,3.62958,2370.6,2370.4,0.42179]
[1726591799791,3.62958,2370.6,2370.0,1.05469]
[1726591799989,3.2078,2370.6,2370.0,1.05469]
[1726591800296,3.2078,2370.9,2370.2,4.26238]
[1726591800497,0.42175,2370.7,2370.5,0.42177]
[1726591800886,3.2078,2370.6,2370.5,0.42177]
[1726591801204,7.7678,2370.6,2369.9,4.179]
[1726591801497,0.42191,2369.9,2369.7,0.42192]
[1726591801796,0.4219,2369.9,2369.7,0.42192]
[1726591801990,3.2078,2370.1,2369.2,4.512663]
[1726591802187,2.15972561,2370.6,2369.5,0.42195]
[1726591802188,3.62972,2369.8,2369.5,0.42195]
[1726591802390,3.62972,2369.8,2369.2,4.512663]
[1726591802391,3.2078,2370.1,2369.2,4.512663]
[1726591802590,3.2078,2369.8,2369.2,4.179]
[1726591802798,3.62966,2370.1,2369.8,0.4219]
[1726591803000,3.62966,2370.1,2369.4,3.2078]
[1726591803001,3.2078,2370.1,2369.4,3.2078]
[1726591803294,3.2078,2370.1,2369.3,1.055]
[1726591803295,3.2078,2370.1,2370.0,0.42187]
[1726591803495,3.2078,2370.1,2369.9,0.42188]
[1726591803806,5.61445,2370.6,2369.5,1.05491]
[1726591803807,0.42183,2370.3,2370.0,0.42186]
[1726591804091,0.42183,2370.3,2369.5,1.05491]
[1726591804092,0.42183,2370.3,2370.1,0.42185]
[1726591804302,3.2078,2370.4,2369.6,3.2078]
[1726591804802,3.2078,2370.4,2370.0,0.42186]
[1726591805096,3.2078,2370.1,2369.6,3.2078]
[1726591805486,0.4219,2369.9,2369.6,3.62973]
[1726591805687,0.42194,2369.7,2369.2,4.179]
[1726591805895,0.42194,2369.7,2369.1,3.2078]
[1726591805896,3.2078,2369.8,2369.3,0.42199]
[1726591806091,3.2078,2369.8,2369.1,3.2078]
[1726591806092,0.42195,2369.6,2369.1,3.2078]
[1726591806302,0.42196,2369.5,2369.2,0.42201]
[1726591806490,3.2078,2369.8,2369.1,3.2078]
[1726591806685,3.2078,2369.8,2369.2,0.422]
[1726591806686,0.42196,2369.6,2369.2,0.422]
[1726591806895,3.2078,2369.8,2369.1,3.2078]
[1726591807093,3.2078,2369.5,2369.1,3.2078]
[1726591807304,3.2078,2369.5,2369.2,0.42201]
[1726591807501,3.2078,2369.5,2369.0,0.42204]
[1726591807694,4.56,2369.6,2368.8,4.179]
[1726591807695,3.2078,2369.3,2368.9,0.42205]
[1726591807899,3.62981,2369.3,2369.0,0.42205]
[1726591808196,3.2078,2369.3,2369.0,0.422]
[1726591808399,0.42196,2369.3,2369.0,0.422]
[1726591808600,3.2078,2369.6,2368.8,7.3868]
[1726591808800,0.42193,2369.5,2368.8,7.3868]
[1726591808997,0.42193,2369.5,2369.2,0.42197]
[1726591809203,3.2078,2369.6,2368.8,7.3868]
[1726591809400,0.42188,2369.8,2369.5,0.42191]
[1726591809599,3.2078,2369.9,2369.7,0.42187]
[1726591809802,3.2078,2369.9,2369.4,3.2078]
[1726591810006,3.62966,2369.9,2369.6,0.42189]
[1726591810198,3.62966,2369.9,2369.4,3.2078]
[1726591810199,3.2078,2369.9,2369.8,0.42187]
[1726591810398,3.62965,2369.9,2369.4,3.2078]
[1726591810599,0.42187,2369.8,2369.4,3.2078]
[1726591810802,3.2078,2369.9,2369.5,0.42192]
[1726591810803,0.4219,2369.7,2369.5,0.42192]
[1726591811106,0.42188,2369.8,2369.5,0.42191]
[1726591811311,0.4219,2369.6,2369.0,4.179]
[1726591811500,0.4219,2369.6,2369.3,0.42194]
[1726591811501,0.42191,2369.6,2369.3,0.42194]
[1726591811897,0.42191,2369.6,2369.3,0.42196]
[1726591812106,0.42195,2369.4,2369.1,0.42198]
[1726591812307,0.42193,2369.5,2369.2,0.42197]
[1726591812600,0.42194,2369.4,2369.1,0.42197]
[1726591812806,0.42194,2369.4,2369.2,0.42197]
[1726591813005,0.42194,2369.4,2369.1,0.42198]
[1726591813308,0.42199,2369.1,2368.9,0.42202]
[1726591813512,0.42198,2369.2,2369.0,0.42201]
[1726591813699,0.42201,2369.1,2368.8,0.42203]
[1726591814005,0.422,2369.1,2368.9,0.42202]
[1726591814509,0.42201,2369.0,2368.8,0.42203]
[1726591814703,3.2078,2369.3,2368.4,7.3868]
[1726591814910,0.42202,2369.0,2368.8,0.42204]
[1726591815204,0.42202,2369.0,2368.8,0.42203]
[1726591815599,0.42201,2369.0,2368.8,0.42204]
[1726591816208,0.42205,2368.8,2368.6,0.42207]
[1726591816406,3.2078,2369.0,2368.4,3.2078]
[1726591816705,0.42207,2368.7,2368.5,0.42209]
[1726591816898,0.42206,2368.8,2368.6,0.42207]
[1726591817107,3.2078,2369.0,2368.6,0.42207]
[1726591817297,0.42207,2368.7,2368.5,0.42209]
[1726591817496,3.2078,2368.7,2368.1,7.3868]
[1726591817696,0.42212,2368.4,2368.2,0.42214]
[1726591817897,0.4221,2368.5,2368.1,3.2078]
[1726591818100,0.4221,2368.5,2368.3,0.42212]
[1726591818308,1.05521,2368.6,2368.2,0.42214]
[1726591818504,3.2078,2368.7,2368.1,3.2078]
[1726591818708,0.42207,2368.7,2368.5,0.42209]
[1726591818905,1.05507,2368.9,2368.5,0.42209]
[1726591819103,0.42207,2368.7,2368.5,0.42209]
[1726591819407,0.42209,2368.6,2368.4,0.4221]
[1726591819609,0.42212,2368.4,2368.2,0.42214]
[1726591819812,1.05521,2368.6,2368.1,3.62996]
[1726591820013,0.42214,2368.3,2368.2,0.42215]
[1726591820214,5.11524,2368.6,2368.2,0.42215]
[1726591820411,4.06,2368.6,2368.1,3.2078]
[1726591820613,4.06,2368.3,2367.8,4.179]
[1726591820814,5.11536,2368.3,2368.0,0.42219]
[1726591821008,0.42217,2368.1,2367.9,0.42219]
[1726591821312,4.06,2368.3,2368.0,0.42217]
[1726591821512,4.06,2368.3,2367.6,3.2078]
[1726591821710,0.33001486,2368.8,2367.4,4.179]
[1726591821711,4.06,2368.0,2367.4,4.179]
[1726591822016,4.06,2368.0,2367.8,0.42221]
[1726591822309,0.42222,2367.9,2367.7,0.42223]
[1726591823409,0.42226,2367.6,2367.0,1.05592]
[1726591823613,4.06,2367.7,2366.9,3.2078]
[1726591823614,0.42228,2367.5,2367.3,0.4223]
[1726591823808,0.42228,2367.5,2366.9,3.2078]
[1726591823809,4.06,2368.0,2367.1,1.05588]
[1726591824008,0.42224,2367.7,2367.5,0.42227]
[1726591824209,4.06,2368.0,2367.6,0.42225]
[1726591824508,0.4222,2367.9,2367.6,0.42225]
[1726591824712,4.06,2368.0,2367.2,8.44261]
[1726591824913,0.42224,2367.7,2367.5,0.42226]
[1726591825103,0.42227,2367.6,2367.4,0.42229]
[1726591825306,0.42228,2367.5,2367.3,0.4223]
[1726591825504,0.42227,2367.6,2367.4,0.42229]
[1726591825906,0.42228,2367.5,2367.3,0.4223]
[1726591826106,0.42229,2367.4,2367.2,0.42232]
[1726591826304,1.05565,2367.6,2367.1,0.42233]
[1726591826503,0.42229,2367.5,2367.3,0.42231]
[1726591826803,0.42228,2367.5,2367.3,0.4223]
[1726591827004,0.42229,2367.4,2367.2,0.42232]
[1726591827325,0.42228,2367.5,2367.3,0.4223]
[1726591827812,7.2678,2367.7,2367.1,4.26366]
[1726591828113,4.48225,2367.7,2367.5,0.42227]
[1726591828512,4.48225,2367.7,2367.4,0.42229]
[1726591828513,0.42228,2367.5,2367.4,0.42229]
[1726591828713,4.06,2367.7,2367.5,0.42226]
[1726591828714,4.48225,2367.7,2367.5,0.42226]
[1726591828912,4.06,2367.7,2367.6,0.42226]
[1726591829108,4.06,2368.0,2367.7,0.42223]
[1726591829312,4.06,2368.0,2367.4,1.05574]
[1726591829510,0.42221,2367.9,2367.4,1.05574]
[1726591829709,4.06,2368.0,2367.4,1.05574]
[1726591829910,0.42221,2367.9,2367.4,1.05574]
[1726591830214,4.06,2368.0,2367.5,1.0557]
[1726591830522,0.42221,2367.9,2367.7,0.42223]
[1726591830811,4.06,2368.0,2367.8,0.42222]
[1726591831011,0.42221,2367.9,2367.7,0.42223]
[1726591831214,4.26333,2367.9,2367.3,3.2078]
[1726591831403,0.42227,2367.6,2367.4,0.42229]
[1726591831607,3.63008,2367.5,2367.4,0.42229]
[1726591831809,0.42243,2366.7,2366.5,4.179]
[1726591832011,3.63022,2366.7,2366.6,1.2825]
[1726591832212,3.63022,2366.7,2366.5,0.6585]
[1726591832421,4.2256,2366.6,2365.6,7.5988]
[1726591832717,4.48245,2366.6,2365.9,3.2078]
[1726591832919,4.06,2366.6,2366.2,0.4225]
[1726591833121,4.48244,2366.6,2366.1,0.42251]
[1726591833307,0.42246,2366.5,2366.0,0.42253]
[1726591833514,4.06,2366.6,2365.9,3.2078]
[1726591833833,4.06,2366.6,2366.2,0.4225]
[1726591834021,3.2078,2367.0,2366.2,3.2078]
[1726591834219,3.2078,2367.0,2366.3,0.42249]
[1726591834422,4.06,2366.9,2366.2,3.2078]
[1726591834812,4.06,2367.2,2366.2,3.2078]
[1726591835116,0.42235,2367.1,2366.5,0.42244]
[1726591835325,4.48234,2367.2,2366.6,0.42242]
[1726591835512,0.42236,2367.1,2366.5,0.42244]
[1726591835719,4.06,2366.9,2366.3,1.9477]
[1726591836026,4.06,2366.9,2366.5,0.42245]
[1726591836326,4.06,2366.9,2366.3,1.9477]
[1726591836327,0.4224,2366.8,2366.3,2.37019]